fUST/lending_fUST_20240120
["ID","MTS","AMOUNT","RATE_DAILY","PERIOD"]
[312250883,1705710447889,11604.37627723,0.00016508,2]
[312250884,1705710449823,-1546.95370634,0.00016508,2]
[312250885,1705710450112,-31.5704838,0.00016508,2]
[312250886,1705710450402,1515.38322254,0.00016508,2]
[312250887,1705710450776,-11953.77785715,0.00016508,2]
[312250888,1705710450920,-243.95465015,0.00016508,2]
[312250889,1705710454892,1293.1158294,0.00016507,2]
[312250890,1705710456505,-3669.23494969,0.00016508,2]
[312250891,1705710456628,-74.88234591,0.00016508,2]
[312250892,1705710460942,-234.38030848,0.00016508,2]
[312250893,1705710460992,-4.7832716,0.00016508,2]
[312250894,1705710461071,229.59703688,0.00016508,2]
[312250895,1705710461100,234.38030848,0.00016508,2]
[312250896,1705710461199,-234.38030848,0.00016508,2]
[312250897,1705710461430,-12000.0,0.00016508,2]
[312250898,1705710461528,-12000.0,0.00016508,2]
[312250899,1705710461620,-12000.0,0.00016508,2]
[312250900,1705710461744,-12000.0,0.00016508,2]
[312250901,1705710461845,-12000.0,0.00016508,2]
[312250902,1705710461951,-12000.0,0.00016508,2]
[312250903,1705710462056,-8470.40424405,0.00016508,2]
[312250904,1705710462199,-3529.59575595,0.00016508,2]
[312250905,1705710462263,-11682.79622771,0.00016508,2]
[312250906,1705710463066,154.86062544,0.00016508,2]
[312250907,1705710464631,711.43114331,0.00016508,2]
[312250908,1705710467370,-644.05484588,0.00016508,2]
[312250909,1705710467398,-653.2793745,0.00016508,2]
[312250910,1705710467617,-26.47620858,0.00016508,2]
[312250911,1705710473892,-156.87167711,0.00016508,2]
[312250912,1705710474054,-1702.14172934,0.00016508,2]
[312250913,1705710474087,-37.93904911,0.00016508,2]
[312250914,1705710474888,216.51947407,0.00016508,2]
[312250915,1705710477533,-166.58308548,0.00016507,2]
[312250916,1705710477562,-11833.41691452,0.00016508,2]
[312250917,1705710477614,-687.60373162,0.00016507,2]
[312250918,1705710477642,-11312.39626838,0.00016508,2]
[312250919,1705710477675,-12000.0,0.00016508,2]
[312250920,1705710477761,-12000.0,0.00016508,2]
[312250921,1705710477869,-12000.0,0.00016508,2]
[312250922,1705710478216,-10373.71597188,0.00016508,2]
[312250923,1705710478251,239.16358008,0.00016508,2]
[312250924,1705710479068,155.23689247,0.00016508,2]
[312250925,1705710481208,8757.15684933,0.00016508,2]
[312250926,1705710482464,-9791.25167937,0.00016508,2]
[312250927,1705710482753,-199.82146284,0.00016508,2]
[312250928,1705710482782,-711.43114331,0.00016508,2]
[312250929,1705710484881,499.4514778,0.00016508,2]
[312250930,1705710487535,156.87167711,0.00016508,2]
[312250931,1705710488309,332.59077113,0.00016508,2]
[312250932,1705710488864,-12000.0,0.00016508,2]
[312250933,1705710488984,-8531.62711917,0.00016508,2]
[312250934,1705710489014,-706.85907529,0.00016508,2]
[312250935,1705710490061,2761.51380554,0.00016508,2]
[312250936,1705710490089,12000.0,0.00016508,2]
[312250937,1705710490119,12000.0,0.00016508,2]
[312250938,1705710490147,10184.66164288,0.00016508,2]
[312250939,1705710490838,1815.33835712,0.00016177,2]
[312250940,1705710490866,1668.66903246,0.00016177,2]
[312250941,1705710490932,607.13204194,0.00016508,2]
[312250942,1705710491782,-1705.27916288,0.00016508,2]
[312250943,1705710492126,-34.80161557,0.00016508,2]
[312250944,1705710493385,178.82165208,0.00016508,2]
[312250945,1705710494476,4698.66437663,0.00015682,2]
[312250946,1705710494802,-2757.16298179,0.00016508,2]
[312250947,1705710494980,-56.26863228,0.00016508,2]
[312250948,1705710495528,688.09822139,0.00016508,2]
[312250949,1705710495586,1468.00454349,0.00012381,2]
[312250950,1705710496521,452.47030798,0.00016508,2]
[312250951,1705710496886,92.32127665,0.00016508,2]
[312250952,1705710496913,1149.57558975,0.00016508,2]
[312250953,1705710497406,760.31790163,0.00014857,2]
[312250954,1705710498702,-154.86062544,0.00016508,2]
[312250955,1705710498730,-588.02510206,0.00016508,2]
[312250956,1705710498762,-178.60617096,0.00016508,2]
[312250957,1705710498807,-18.80595711,0.00016508,2]
[312250958,1705710499196,902.68594135,0.00016508,2]
[312250959,1705710499226,921.49189846,0.00016508,2]
[312250960,1705710499253,921.49189846,0.00016508,2]
[312250961,1705710499712,-5891.25736884,0.00016508,2]
[312250962,1705710499963,-120.22974222,0.00016508,2]
[312250963,1705710500620,652.67314497,0.00016508,2]
[312250964,1705710501864,5118.35448165,0.00016508,2]
[312250965,1705710501892,2294.93271213,0.00016508,2]
[312250966,1705710502317,7265.0214499,0.00016508,2]
[312250967,1705710502370,-7265.0214499,0.00016508,2]
[312250968,1705710502857,-6207.49149069,0.00016508,2]
[312250969,1705710502986,-126.68349981,0.00016508,2]
[312250970,1705710504056,6080.80799088,0.00016508,2]
[312250971,1705710504084,6207.49149069,0.00016508,2]
[312250972,1705710504291,6207.49149069,0.00016508,2]
[312250973,1705710504452,-12000.0,0.00016508,2]
[312250974,1705710504619,-6450.38447616,0.00016508,2]
[312250975,1705710504648,-1602.24051039,0.00016508,2]
[312250976,1705710504676,-3947.37501345,0.00016508,2]
[312250977,1705710507172,5000.0,0.00016012,2]
[312250980,1705710566073,858.6675558,0.00016012,2]
[312250981,1705710575008,1492.6193174,0.0001552,2]
[312250984,1705710603631,1285.7830152,0.00015506,2]
[312250985,1705710628828,3484.00738958,0.0001617,2]
[312251040,1705710633557,-1740.08077845,0.000165,2]
[312251042,1705710633566,-154.86062544,0.00016501,2]
[312251044,1705710633575,-7999.96196843,0.00016501,2]
[312251046,1705710633584,-787.34773645,0.00016501,2]
[312251048,1705710633594,-1627.96467376,0.00016502,2]
[312251050,1705710633608,-1000.0,0.00016502,2]
[312251053,1705710633621,-1116.15262184,0.00016502,2]
[312251055,1705710633631,-1578.52419014,0.00016503,2]
[312251057,1705710633640,-120.32515602,0.00016503,2]
[312251198,1705710635333,-19570.77233464,0.00016503,2]
[312251200,1705710635344,-8757.15684933,0.00016504,2]
[312251202,1705710635354,-18895.08975883,0.00016504,2]
[312251204,1705710635364,-155.57473805,0.00016505,2]
[312251206,1705710635374,-155.69029805,0.00016507,2]
[312251208,1705710635383,-13664.44821354,0.00016507,2]
[312251210,1705710635393,-9894.73776564,0.00016507,2]
[312251212,1705710635403,-16062.51652276,0.00016508,2]
[312251214,1705710635412,-197.27545463,0.00016508,2]
[312251216,1705710635422,-294.70821043,0.00016508,2]
[312251218,1705710635431,-1254.74957444,0.00016508,2]
[312251220,1705710635440,-155.46887984,0.00016508,2]
[312251222,1705710635449,-489.9472266,0.00016508,2]
[312251570,1705710638592,-815.2694569,0.000165,2]
[312251578,1705710638654,-20860.3387675,0.000165,2]
[312251580,1705710638663,-129.49421477,0.00016508,2]
[312251582,1705710638673,-715.04668397,0.00016508,2]
[312251584,1705710638683,-2606.17607526,0.0001651,2]
[312251586,1705710638691,-291.3938216,0.0001651,2]
[312251588,1705710638700,-323.39599469,0.00016517,2]
[312251590,1705710638709,-2072.61065155,0.00016517,2]
[312251592,1705710638719,-177.49255209,0.00016518,2]
[312251594,1705710638728,-178.65716453,0.00016522,2]
[312251596,1705710638737,-874.6562923,0.0001654,2]
[312251598,1705710638746,-158.18922111,0.00016541,2]
[312251600,1705710638755,-747.70440582,0.00016541,2]
[312251602,1705710638764,-1265.64175415,0.00016541,2]
[312251604,1705710638773,-2037.73028477,0.00016541,2]
[312251606,1705710638783,-301.73207078,0.00016541,2]
[312251608,1705710638794,-255.92673161,0.00016541,2]
[312251610,1705710638802,-210.60594596,0.00016541,2]
[312251612,1705710638811,-155.09288231,0.00016541,2]
[312251614,1705710638820,-154.9690062,0.00016542,2]
[312251616,1705710638829,-154.9690062,0.00016542,2]
[312251618,1705710638838,-333.58168605,0.00016542,2]
[312251620,1705710638847,-154.9690062,0.00016542,2]
[312251622,1705710638856,-155.16305792,0.00016542,2]
[312251624,1705710638865,-1271.19838931,0.00016545,2]
[312251625,1705710638874,-205.21046346,0.00016545,2]
[312251628,1705710638883,-255.12934762,0.00016545,2]
[312251630,1705710638892,-441.16105616,0.00016545,2]
[312251632,1705710638902,-272.42186695,0.00016545,2]
[312251634,1705710638911,-20779.0378992,0.00016547,2]
[312251636,1705710638920,-190.72506666,0.00016549,2]
[312251638,1705710638929,-8270.29192,0.00016549,2]
[312251640,1705710638941,-1936.95308951,0.00016549,2]
[312251642,1705710638950,-268.3728881,0.00016549,2]
[312251644,1705710638959,-2102.11817883,0.00016551,2]
[312251646,1705710638968,-873.86173983,0.00017235,2]
[312251648,1705710638977,-200.0,0.00017344,2]
[312251650,1705710638986,-155.58298179,0.00017561,2]
[312251652,1705710638995,-1210.78763915,0.00017568,2]
[312251654,1705710639004,-177.32167792,0.00017675,2]
[312251656,1705710639013,-155.16255265,0.00017675,2]
[312251658,1705710639023,-215.44629117,0.00017676,2]
[312251660,1705710639032,-200.67511486,0.00017676,2]
[312251662,1705710639041,-2090.06981655,0.000189,2]
[312251676,1705710639165,-1581.42371087,0.00019,2]
[312251678,1705710639175,-280.0,0.00019079,2]
[312251680,1705710639184,-169.249372,0.00019178,2]
[312251682,1705710639194,-168.394691,0.00019178,2]
[312251684,1705710639203,-1113.91161195,0.000195,2]
[312251686,1705710639212,-678.20873721,0.0002,2]
[312251688,1705710639222,-154.86062544,0.0002,2]
[312251690,1705710639230,-154.86062544,0.0002,2]
[312251692,1705710639239,-849.76694483,0.0002,2]
[312251693,1705710639248,-1197.20181474,0.0002,2]
[312251694,1705710639257,-391.0,0.00020987,2]
[312251695,1705710639266,-1763.93265691,0.00021,2]
[312251696,1705710639275,-327.3065169,0.00021,2]
[312251697,1705710639284,-170.450179,0.00021415,2]
[312251698,1705710639293,-166.666666,0.00021918,2]
[312251699,1705710639302,-425.69649895,0.00022,2]
[312251700,1705710639311,-3963.07176261,0.00022,2]
[312251701,1705710639319,-166.666666,0.00022431,2]
[312251702,1705710639328,-823.86653966,0.000227,2]
[312251703,1705710639337,-174.41185097,0.00022913,2]
[312251704,1705710639345,-166.666666,0.00022944,2]
[312251705,1705710639355,-1570.51691987,0.00023,2]
[312251706,1705710639363,-200.0,0.00023085,7]
[312251707,1705710639372,-348.0,0.00023085,7]
[312251708,1705710639381,-277.76241,0.00023141,2]
[312251709,1705710639389,-166.666666,0.00023456,2]
[312251710,1705710639398,-2090.06981655,0.000239,2]
[312251711,1705710639407,-166.666666,0.00023969,2]
[312251712,1705710639416,-4011.58774012,0.00024,2]
[312251713,1705710639425,-166.666666,0.00024482,2]
[312251714,1705710639433,-498.00832139,0.0002495,5]
[312251716,1705710639442,-4719.78899734,0.00025,2]
[312251718,1705710639452,-1045.65136347,0.00025,2]
[312251720,1705710639461,-243.2633363,0.00025281,2]
[312251722,1705710639470,-174.51078494,0.00025281,2]
[312251724,1705710639479,-156.0285814,0.00025281,2]
[312251726,1705710639489,-195.94859786,0.00025282,2]
[312251728,1705710639498,-162.03621766,0.00025282,2]
[312251730,1705710639509,-1030.26788664,0.00025282,2]
[312251732,1705710639518,-200.0,0.00025394,7]
[312251734,1705710639526,-200.0,0.00025394,7]
[312251736,1705710639536,-368.0,0.00025394,7]
[312251738,1705710639545,-1693.74494191,0.00026019,2]
[312251740,1705710639554,-154.87609912,0.0002602,2]
[312251741,1705710639563,-1589.24944099,0.0002602,2]
[312251743,1705710639572,-154.86062544,0.00026024,2]
[312251745,1705710639581,-3127.11427386,0.00027393,2]
[312251747,1705710639590,-2032.6864534,0.00027394,2]
[312251749,1705710639600,-200.75891573,0.00027394,2]
[312251751,1705710639608,-261.89954561,0.00027394,2]
[312251753,1705710639617,-500.0,0.00027396,2]
[312251755,1705710639626,-500.0,0.00027396,2]
[312251757,1705710639637,-500.0,0.00027396,2]
[312251759,1705710639646,-502.64723722,0.00027396,2]
[312251761,1705710639655,-503.20461664,0.00027396,2]
[312251763,1705710639664,-500.31715099,0.00027396,2]
[312251765,1705710639673,-500.0,0.00027396,2]
[312251768,1705710639683,-500.0,0.00027396,2]
[312251769,1705710639692,-463.78712928,0.00027396,2]
[312251771,1705710639701,-500.0,0.00027396,2]
[312251773,1705710639710,-500.0,0.00027396,2]
[312251775,1705710639719,-500.0,0.00027396,2]
[312251777,1705710639729,-576.83548935,0.00027396,2]
[312251779,1705710639738,-500.0,0.00027396,2]
[312251781,1705710639746,-500.0,0.00027396,2]
[312251783,1705710639755,-500.0,0.00027396,2]
[312251785,1705710639764,-289.4803449,0.00027396,2]
[312251787,1705710639774,-500.0,0.00027396,2]
[312251789,1705710639783,-500.0,0.00027396,2]
[312251791,1705710639793,-500.0,0.00027396,2]
[312251793,1705710639803,-500.0,0.00027396,2]
[312251795,1705710639812,-500.0,0.00027396,2]
[312251797,1705710639821,-500.0,0.00027396,2]
[312251799,1705710639831,-500.0,0.00027396,2]
[312251801,1705710639840,-500.0,0.00027396,2]
[312251803,1705710639850,-500.0,0.00027396,2]
[312251805,1705710639860,-262.93415322,0.00027396,2]
[312251807,1705710639869,-500.0,0.00027396,2]
[312251809,1705710639878,-500.0,0.00027396,2]
[312251811,1705710639887,-500.0,0.00027396,2]
[312251813,1705710639897,-11045.94,0.00027397,3]
[312251815,1705710639906,-9204.95,0.00027397,3]
[312251817,1705710639916,-7670.79,0.00027397,3]
[312251819,1705710639925,-6392.33,0.00027397,3]
[312251821,1705710639935,-200.0,0.00027933,15]
[312251823,1705710639945,-200.0,0.00027933,15]
[312251825,1705710639953,-200.0,0.00027933,15]
[312251827,1705710639963,-200.0,0.00027933,15]
[312251829,1705710639972,-275.0,0.00027933,15]
[312251831,1705710639981,-154.86062544,0.00028,10]
[312251833,1705710639991,-290.08228321,0.00028,2]
[312251835,1705710640000,-199.0432224,0.00028493,2]
[312251837,1705710640008,-199.0432224,0.00028493,2]
[312251839,1705710640018,-199.0432224,0.00028493,2]
[312251841,1705710640026,-199.0432224,0.00028493,2]
[312251843,1705710640035,-344.4101477,0.00028493,2]
[312251845,1705710640045,-199.0432224,0.00028493,2]
[312251847,1705710640054,-3000.0,0.000288,3]
[312251849,1705710640063,-154.86062544,0.00029,2]
[312251851,1705710640073,-1879.41245692,0.00029,2]
[312251853,1705710640082,-3000.0,0.00029,7]
[312251855,1705710640100,-206.8857815,0.00029178,2]
[312251858,1705710640115,-199.0432224,0.00029315,2]
[312251860,1705710640129,-199.0432224,0.00029315,2]
[312251863,1705710640142,-199.0432224,0.00029315,2]
[312251865,1705710640154,-174.41185097,0.00029406,2]
[312251867,1705710640168,-164.31818866,0.00029998,2]
[312251870,1705710640182,-154.86062544,0.00029998,2]
[312251872,1705710640195,-283.56232252,0.00029998,2]
[312251874,1705710640208,-316.39874573,0.00029998,2]
[312251877,1705710640222,-2704.99617149,0.00029998,2]
[312251879,1705710640233,-166.40741749,0.00029998,2]
[312251881,1705710640246,-14376.68986413,0.00029999,2]
[312251884,1705710640259,-453.96081781,0.00029999,2]
[312251886,1705710640271,-491.69218415,0.00029999,4]
[312251888,1705710640284,-232261.21677057,0.0003,30]
[312251891,1705710640296,-243.97478798,0.0003,4]
[312251893,1705710640309,-230.98960504,0.0003,4]
[312251895,1705710640320,-549.23714498,0.0003,6]
[312251898,1705710640331,-463.33659972,0.0003,2]
[312251900,1705710640346,-682.3767278,0.0003,3]
[312251903,1705710640361,-688.01285151,0.0003,4]
[312251905,1705710640374,-500.0,0.00030136,2]
[312251907,1705710640386,-165.406183,0.00030137,2]
[312251911,1705710640398,-165.406186,0.00030137,2]
[312251913,1705710640411,-175.744071,0.00030137,2]
[312251915,1705710640425,-500.0,0.00030273,2]
[312251918,1705710640439,-620.00255576,0.00030561,2]
[312251920,1705710640453,-436.0,0.0003066,30]
[312251923,1705710640468,-436.0,0.0003067,30]
[312251925,1705710640478,-171.5,0.0003067,30]
[312251927,1705710640488,-436.0,0.0003068,30]
[312251929,1705710640498,-150.5,0.0003068,30]
[312251932,1705710640511,-175.06,0.0003068,30]
[312251934,1705710640523,-273.1,0.0003068,30]
[312251936,1705710640533,-150.5,0.0003069,30]
[312251938,1705710640546,-200.0,0.00030727,15]
[312251941,1705710640556,-200.0,0.00030727,15]
[312251943,1705710640567,-200.0,0.00030727,15]
[312251945,1705710640577,-200.0,0.00030727,15]
[312251947,1705710640588,-200.0,0.00030727,15]
[312251949,1705710640599,-200.0,0.00030727,15]
[312251951,1705710640611,-305.0,0.00030727,15]
[312251953,1705710640621,-168.00002645,0.00031,2]
[312251956,1705710640633,-50000.0,0.00031297,3]
[312251958,1705710640645,-50000.0,0.00031297,3]
[312251960,1705710640656,-8320.89185844,0.00031297,3]
[312251963,1705710640671,-10202.84952288,0.00031297,3]
[312252275,1705710643418,-13444.85092156,0.00031297,3]
[312252731,1705711596096,-310.42972716,0.00024016,2]
[312252786,1705711832794,-702.27119908,0.00021466,2]
[312252787,1705711832811,-171.59054075,0.00021466,2]
[312252788,1705711832981,-894.34588318,0.00021467,2]
[312252815,1705711838622,-787.34773645,0.00021466,2]
[312252817,1705711838632,-219.56572877,0.00021467,2]
[312252819,1705711838641,-327.3065169,0.00021468,2]
[312252821,1705711838651,-154.86062544,0.00021469,2]
[312252823,1705711838661,-154.86062544,0.0002147,2]
[312252825,1705711838670,-1581.42371087,0.0002147,2]
[312252827,1705711838679,-83.93298173,0.0002147,2]
[312252830,1705711838695,-1740.08077845,0.00021466,2]
[312252832,1705711838704,-1113.26883301,0.0002147,2]
[312252833,1705711838713,-1763.93265691,0.0002147,2]
[312252835,1705711838722,-250.0,0.00021471,2]
[312252837,1705711838732,-6719.9163184,0.00021576,2]
[312252839,1705711838741,-696.68993885,0.00021916,2]
[312252841,1705711838750,-166.666666,0.00021918,2]
[312252843,1705711838759,-425.69649895,0.00022,2]
[312252845,1705711838768,-174.98540881,0.000224,2]
[312252847,1705711838777,-166.666666,0.00022431,2]
[312252848,1705711838786,-168.59532358,0.000225,2]
[312252850,1705711838795,-823.86653966,0.000227,2]
[312252852,1705711838804,-166.666666,0.00022944,2]
[312252854,1705711838813,-3963.07176261,0.00022999,2]
[312252856,1705711838822,-1570.51691987,0.00023,2]
[312252858,1705711838832,-166.666666,0.00023456,2]
[312252860,1705711838841,-24900.0,0.00023506,2]
[312252862,1705711838851,-160.95081821,0.00023913,2]
[312252864,1705711838861,-166.666666,0.00023969,2]
[312252866,1705711838870,-4011.58774012,0.00024,2]
[312252868,1705711838879,-300.0,0.00024016,2]
[312252871,1705711838889,-1824.95710943,0.00024016,2]
[312252873,1705711838898,-2083.05150517,0.00024016,2]
[312252874,1705711838907,-170.450179,0.00024022,2]
[312252876,1705711838917,-166.666666,0.00024482,2]
[312252878,1705711838926,-160.95081821,0.00025542,2]
[312252880,1705711838935,-300.80442978,0.00026256,2]
[312252882,1705711838944,-154.86062544,0.00026299,2]
[312252884,1705711838954,-154.87609912,0.000263,2]
[312252886,1705711838964,-1912.02144288,0.000263,2]
[312252888,1705711838974,-200.0,0.0002642,15]
[312252890,1705711838983,-696.68993885,0.00026916,2]
[312252892,1705711838992,-160.95081821,0.00027171,2]
[312252894,1705711839001,-620.05131154,0.00027541,2]
[312252896,1705711839010,-185.30958395,0.00028135,2]
[312252898,1705711839020,-3000.0,0.000288,3]
[312252900,1705711839029,-160.95081821,0.000288,2]
[312252902,1705711839038,-4255.33,0.0002887,3]
[312252903,1705711839046,-5106.39,0.0002888,3]
[312252905,1705711839055,-4676.11237463,0.0002889,3]
[312252908,1705711839067,-319.77454204,0.0002889,3]
[312252911,1705711839087,-1131.78308333,0.0002889,3]
[312252913,1705711839096,-408.79876138,0.000289,2]
[312252915,1705711839105,-408.79876138,0.000289,2]
[312252916,1705711839115,-408.79876138,0.000289,2]
[312252918,1705711839124,-408.79876138,0.000289,2]
[312252920,1705711839133,-408.79876138,0.000289,2]
[312252922,1705711839142,-408.79876138,0.000289,2]
[312252924,1705711839151,-408.79876138,0.000289,2]
[312252926,1705711839160,-408.79876138,0.000289,2]
[312252928,1705711839169,-408.79876138,0.000289,2]
[312252930,1705711839179,-408.79876,0.000289,2]
[312252932,1705711839188,-620.00256558,0.00028918,2]
[312252934,1705711839198,-154.86062544,0.00029,2]
[312252936,1705711839208,-1879.41245692,0.00029,2]
[312252938,1705711839218,-280.0,0.00029062,15]
[312252940,1705711839227,-2048.80317919,0.00029732,4]
[312253183,1705711841762,-761.11985494,0.00029732,4]
[312253581,1705711846593,-6304.84641915,0.00029732,4]
[312253582,1705711846604,-158.94600393,0.00029804,5]
[312253583,1705711846613,-682.3767278,0.0003,3]
[312253584,1705711846623,-688.01285151,0.0003,4]
[312253585,1705711846632,-464.33375401,0.0003,2]
[312253586,1705711846641,-230.98960504,0.0003,4]
[312253587,1705711846651,-243.97478798,0.0003,4]
[312253588,1705711846660,-549.23714498,0.0003,6]
[312253590,1705711846670,-14938.58095506,0.0003,30]
[312253592,1705711846682,-923.02765015,0.0003,30]
[312254207,1705712827087,-711.43114331,0.00018881,2]
[312254208,1705712827107,-873.86173983,0.00018882,2]
[312254209,1705712827127,-326.72855974,0.00018891,2]
[312254210,1705712840083,-786.25167679,0.00018891,2]
[312254239,1705713031791,-10295.56996507,0.00018891,2]
[312254241,1705713031801,-11486.67042308,0.00018891,2]
[312254243,1705713031810,-328.4835946,0.00018898,2]
[312254245,1705713031820,-316.05161098,0.00018898,2]
[312254247,1705713031829,-708.68282402,0.000189,2]
[312254249,1705713031838,-1113.91161195,0.000195,2]
[312254251,1705713031848,-1197.20181474,0.0002,2]
[312254255,1705713031857,-200.0,0.00020779,2]
[312254259,1705713031867,-711.02459179,0.00020998,2]
[312254262,1705713031878,-563.08648159,0.00020998,2]
[312254265,1705713031890,-1241.8968664,0.00020999,2]
[312254268,1705713031899,-242.99577859,0.00020999,2]
[312254271,1705713031908,-1418.91986757,0.00020999,2]
[312254274,1705713031918,-14557.60027266,0.00021,2]
[312254277,1705713031927,-327.3065169,0.00021,2]
[312254280,1705713031936,-1763.93265691,0.00021,2]
[312254282,1705713031945,-24900.0,0.00021753,2]
[312254285,1705713031956,-166.666666,0.00021918,2]
[312254288,1705713031965,-168.394691,0.00021923,2]
[312254291,1705713031974,-3963.07176261,0.00022,2]
[312254294,1705713031983,-425.69649895,0.00022,2]
[312254297,1705713031993,-166.666666,0.00022431,2]
[312254299,1705713032003,-823.86653966,0.000227,2]
[312254302,1705713032012,-280.0,0.00022857,7]
[312254304,1705713032021,-166.666666,0.00022944,2]
[312254307,1705713032031,-1570.51691987,0.00023,2]
[312254310,1705713032040,-166.666666,0.00023456,2]
[312254313,1705713032050,-708.68282402,0.000239,2]
[312254316,1705713032059,-166.666666,0.00023969,2]
[312254319,1705713032068,-166.666666,0.00024482,2]
[312254322,1705713032078,-1045.65136347,0.00025,2]
[312254325,1705713032087,-4719.78899734,0.00025,2]
[312254327,1705713032096,-391.0,0.00025143,7]
[312254329,1705713032105,-1435.5232526,0.00025716,2]
[312254331,1705713032114,-1017.68199247,0.00025716,2]
[312254333,1705713032123,-1602.24051039,0.00025717,2]
[312254335,1705713032131,-154.84515485,0.00027,2]
[312254337,1705713032140,-2857.33158227,0.00027554,2]
[312254669,1705713037854,-1154.25615785,0.00027554,2]
[312254671,1705713037864,-177.679949,0.00027557,2]
[312254673,1705713037874,-200.0,0.00027657,15]
[312254675,1705713037886,-348.0,0.00027657,15]
[312254677,1705713037896,-190.42489315,0.00027722,2]
[312254679,1705713037908,-10202.84952288,0.00027722,2]
[312254682,1705713037920,-14506.72558397,0.00027722,2]
[312254684,1705713037930,-9114.76945328,0.000285,4]
[312254686,1705713037940,-5784.06,0.00028789,3]
[312254688,1705713037950,-4820.05,0.00028789,3]
[312254690,1705713037961,-4016.71,0.00028789,3]
[312254693,1705713037971,-3347.25,0.0002879,3]
[312254695,1705713037981,-166.40741749,0.00028798,2]
[312254697,1705713037991,-316.39874573,0.00028798,2]
[312254699,1705713038001,-164.31818866,0.00028798,2]
[312254701,1705713038011,-283.56232252,0.00028798,2]
[312254703,1705713038021,-2704.99617149,0.00028798,2]
[312254705,1705713038032,-154.98450155,0.00028799,2]
[312254707,1705713038042,-154.86062544,0.00028799,2]
[312254709,1705713038052,-14376.68986413,0.00028799,2]
[312254711,1705713038062,-22585.44764336,0.000288,2]
[312254956,1705713040913,-1998.07764318,0.000288,2]
[312254957,1705713040923,-3000.0,0.000288,3]
[312254958,1705713040933,-708.68282402,0.000289,2]
[312254959,1705713040943,-503.20461663,0.00028999,2]
[312254960,1705713040952,-500.0,0.00028999,2]
[312254961,1705713040963,-357.76049193,0.00028999,2]
[312254962,1705713040972,-500.0,0.00028999,2]
[312254963,1705713040981,-215.42024453,0.00028999,2]
[312254964,1705713040989,-500.0,0.00028999,2]
[312254965,1705713040998,-500.0,0.00028999,2]
[312254966,1705713041006,-609.26732449,0.00028999,2]
[312254967,1705713041015,-500.0,0.00028999,2]
[312254968,1705713041025,-500.0,0.00028999,2]
[312254969,1705713041033,-500.0,0.00028999,2]
[312254970,1705713041042,-500.0,0.00028999,2]
[312254971,1705713041052,-500.0,0.00028999,2]
[312254972,1705713041061,-500.0,0.00028999,2]
[312254973,1705713041069,-500.0,0.00028999,2]
[312254974,1705713041079,-246.10129361,0.00028999,2]
[312254975,1705713041087,-500.0,0.00028999,2]
[312254976,1705713041096,-500.0,0.00028999,2]
[312254977,1705713041105,-500.0,0.00028999,2]
[312254978,1705713041114,-376.37785999,0.00029,3]
[312254979,1705713041123,-154.84515485,0.00029,2]
[312254980,1705713041133,-54792.97642603,0.00029,2]
[312254981,1705713041142,-832.47642224,0.00029,2]
[312254982,1705713041151,-1879.41245692,0.00029,2]
[312254983,1705713041161,-2036.31691242,0.00029,2]
[312254984,1705713041170,-206.8857815,0.00029178,2]
[312254986,1705713041179,-199.0432224,0.00029315,2]
[312254987,1705713041189,-174.41185097,0.00029588,2]
[312254988,1705713041199,-491.69218415,0.00029689,4]
[312254989,1705713041208,-453.96081781,0.00029689,2]
[312254991,1705713041218,-28732.87538966,0.0002969,2]
[312254994,1705713041238,-2085.38164812,0.0002969,2]
[312255359,1705713045935,-1743.91680008,0.00018891,2]
[312255360,1705713045947,-1080.23294691,0.00018891,2]
[312255777,1705713959119,-787.34773645,0.00018875,2]
[312255778,1705713959139,-2001.52604925,0.00018876,2]
[312255779,1705713959158,-114.93872686,0.00018876,2]
[312255780,1705714053287,401.06638553,0.00025099,10]
[312255828,1705714232045,-787.39631765,0.00018874,2]
[312255831,1705714232054,-154.79876161,0.00018875,3]
[312255834,1705714232063,-3128.92217734,0.00018875,2]